Cogmind - Beta 13 @@@ ROGUE MODE // 2024.04.04 @ 22:24:28 Player: Tarnath Result: Destroyed by 9X-CTS(z) with Makeshift Laser Performance ------------- Evolutions (1) 500 Regions Visited (4) 800 Robots Destroyed (19) 95 Value Destroyed (406) 406 Prototype IDs (0) 0 Alien Tech Used (0) 0 Bonus (-14) -14 TOTAL SCORE: 1787 Bonus ------- Friendly Fire -14 Cogmind --------- Core Integrity 0/400 Matter 300/300 Energy 95/100 System Corruption 2% Temperature Cool (27) Movement Core (150) Ox2 Location -7/Zion Parts ------- > --- POWER (1) -------- (None) > --- PROPULSION (3) --- (None) > --- UTILITY (3) ------ Small Storage Unit Visual Processing Unit Improved Targeting Computer > --- WEAPON (2) ------- CR-A16's Pointy Stick > --- INVENTORY (8) ---- Ion Engine Ion Engine Aluminum Leg Terrain Scanner Relay Coupler [Programmer] (53) EM Pulse Gun Rocket Launcher Plasma Flamer Peak State ------------ > --- POWER ------------ Ion Engine > --- PROPULSION ------- Aluminum Leg Aluminum Leg Makeshift Leg > --- UTILITY ---------- Small Storage Unit Visual Processing Unit Improved Targeting Computer > --- WEAPON ----------- Heavy Assault Rifle Plasma Flamer > --- INVENTORY -------- Ion Engine Ion Engine Aluminum Leg Terrain Scanner Relay Coupler [Programmer] EM Pulse Gun Rocket Launcher CR-A16's Pointy Stick [Rating: 20] Favorites ----------- Power Ion Engine Engine Ion Engine Propulsion Aluminum Leg Leg Aluminum Leg Utility Small Storage Unit Device Terrain Scanner Storage Small Storage Unit Processor Visual Processing Unit Weapon Heavy Assault Rifle Ballistic Gun Heavy Assault Rifle Ballistic Cannon Light Cannon Special Weapon Plasma Flamer Piercing Weapon CR-A16's Pointy Stick Build | -11 -10 -9 -9 -7 ------- Run | Yrd Mat Mat Min Zio Slots Evolved 2 | . . 2 . . Power . | . . . . . Propulsion 1 | . . 1 . . Utility 1 | . . 1 . . Weapon . | . . . . . Parts Attached 23 | 6 4 9 2 2 Power 4 | 1 2 . 1 . Engine 4 | 1 2 . 1 . Core . | . . . . . Reactor . | . . . . . Propulsion 7 | 2 . 4 . 1 Treads . | . . . . . Leg 7 | 2 . 4 . 1 Wheel . | . . . . . Hover . | . . . . . Flight . | . . . . . Utility 5 | 1 1 3 . . Device 2 | . 1 1 . . Storage 1 | 1 . . . . Processor 2 | . . 2 . . Hackware . | . . . . . Protection . | . . . . . Artifact . | . . . . . Weapon 7 | 2 1 2 1 1 Energy Gun . | . . . . . Energy Cannon . | . . . . . Ballistic Gun 4 | 2 1 1 . . Ballistic Cannon 1 | . . 1 . . Launcher . | . . . . . Special Weapon 1 | . . . 1 . Impact Weapon . | . . . . . Slashing Weapon . | . . . . . Piercing Weapon 1 | . . . . 1 Special Melee Weapon . | . . . . . Unidentified Prototypes . | . . . . . Parts Lost 4 | . . . . 4 Power 1 | . . . . 1 Propulsion 2 | . . . . 2 Utility . | . . . . . Weapon 1 | . . . . 1 Highest Loss Streak 4 | . . . . 4 To Critical Strikes . | . . . . . Average Slot Usage (%) 92 | . 87 92 100 91 Engine 10 | . 10 11 11 9 Leg 30 | . 28 32 33 27 Device 4 | . 5 9 . . Storage 11 | . 14 11 11 11 Processor 11 | . . 5 22 22 Ballistic Gun 16 | . 28 16 11 9 Ballistic Cannon 1 | . . 5 1 . Special Weapon 4 | . . . 9 9 Naked Turns . | . . . . . Heaviest Build 17 | 11 14 17 16 16 Greatest Support 40 | 20 20 33 33 40 Greatest Overweight (x) 3 | 1 . . . 3 Average Overweight (x) . | . . . . . Largest Inventory Capacity 8 | 8 8 8 8 8 Average Capacity 7 | 7 8 8 8 8 Most Carried 8 | 2 7 8 8 8 Average Carried 6 | 1 3 6 7 7 Final Capacity 8 | 8 8 8 8 8 Final Carried 8 | 2 7 7 7 8 Class Distribution -------------------- 100% | Mutant Dominant Class ---------------- Mutant | -10/Materials Mutant | -9/Materials Mutant | -9/Mines Mutant | -7/Zion Resources | -11 -10 -9 -9 -7 ----------- Run | Yrd Mat Mat Min Zio Matter Collected 676 | 260 62 317 27 10 Remotely . | . . . . . Salvage Created 533 | . 126 361 . 46 Parts 34 | . 5 24 . 5 Haulers Intercepted . | . . . . . Recyclers Shooed . | . . . . . Parts Field Recycled . | . . . . . Retrieved Matter . | . . . . . Parts Self-Destructed . | . . . . . Prevented . | . . . . . Kills | -11 -10 -9 -9 -7 ------- Run | Yrd Mat Mat Min Zio Combat Hostiles Destroyed 13 | . 5 8 . . Guns 12 | . 5 7 . . Cannons 1 | . . 1 . . Classes Destroyed 7 | . 2 4 . 1 Worker 1 | . . 1 . . Watcher 2 | . . 2 . . Swarmer 6 | . 3 3 . . Grunt 4 | . 2 2 . . Duelist 1 | . . 1 . . Sentry 2 | . . 2 . . Zionite 3 | . . . . 3 Best Kill Streak 3 | . 3 3 . 2 Combat Bots Only 3 | . 3 3 . . Max Kills in Single Turn 2 | . 2 1 . 1 Gunslinging 1 | . 1 . . . Exploded . | . . . . . Melee . | . . . . . Uniques/NPCs Destroyed . | . . . . . Combat | -11 -10 -9 -9 -7 -------- Run | Yrd Mat Mat Min Zio Hostile Shots Fired 151 | . 32 41 . 78 Missed 46 | . 12 13 . 21 Damage Taken 1336 | . 164 363 . 809 Core 436 | . 27 38 . 371 Absorbed by Shields . | . . . . . Core Remaining (%) 94 | 100 89 . . . Volleys Fired 52 | . 13 36 . 3 Largest 2 | . 2 2 . 2 Hottest 123 | . 40 58 . 123 Shots Fired 104 | . 26 72 . 6 Gun 91 | . 26 62 . 3 Cannon 10 | . . 10 . . Launcher . | . . . . . Special 3 | . . . . 3 Kinetic 101 | . 26 72 . 3 Thermal 3 | . . . . 3 Explosive . | . . . . . Electromagnetic . | . . . . . Robot Hit Streak 7 | . 4 7 . 3 Robot Miss Streak 5 | . 3 5 . 2 Penetration Max . | . . . . . Secondary Targets 4 | . 1 3 . . Max Gunslinging Chain 1 | . 1 1 . . Shots Hit Robots 63 | . 13 39 . 11 Core Hits 27 | . 7 18 . 2 Critical Kills . | . . . . . Critical Parts Destroyed . | . . . . . Critical Strikes 2 | . . 1 . 1 Blast 1 | . . 1 . . Impale 1 | . . . . 1 Melee Attacks 13 | . . . . 13 Impact . | . . . . . Slashing . | . . . . . Piercing 13 | . . . . 13 Sneak Attacks . | . . . . . Combat Hostiles . | . . . . . Follow-up Attacks . | . . . . . Damage Inflicted 957 | . 148 538 . 271 Guns 577 | . 148 415 . 14 Cannons 123 | . . 123 . . Explosions . | . . . . . Melee 231 | . . . . 231 Ramming . | . . . . . Kinetic 700 | . 148 538 . 14 Thermal 26 | . . . . 26 Explosive . | . . . . . Electromagnetic . | . . . . . Impact . | . . . . . Slashing . | . . . . . Piercing 231 | . . . . 231 Highest Corruption 2 | . . . . 2 Average Corruption 1 | . . . . 1 Corruption Purged . | . . . . . Corruption Blocked . | . . . . . Effects 1 | . . . . 1 Energy Discharges 1 | . . . . 1 Overload Shots . | . . . . . Overflow Damage 44 | . . . . 44 Projectiles . | . . . . . Explosions . | . . . . . Melee 44 | . . . . 44 Knockbacks 1 | . . 1 . . Impact . | . . . . . Kinetic 1 | . . 1 . . Secondary . | . . . . . Self-Inflicted Damage . | . . . . . Shots . | . . . . . Rammed . | . . . . . Targets Rammed . | . . . . . Kicked . | . . . . . Crushed . | . . . . . Highest Temperature 85 | . 6 5 . 85 Average Temperature 30 | . 6 3 . 41 Received Heat Transfer 150 | . 18 78 . 54 Siege Activations . | . . . . . Robots Corrupted . | . . . . . Combat Hostiles . | . . . . . Parts Fried . | . . . . . Impact Corruptions . | . . . . . Robots Melted . | . . . . . Combat Hostiles . | . . . . . Parts Melted . | . . . . . Heat Transferred 160 | . . . . 160 Parts Sabotaged . | . . . . . Parts Stolen . | . . . . . Parts Stripped . | . . . . . Power Chain Reactions . | . . . . . Alert | -11 -10 -9 -9 -7 ------- Run | Yrd Mat Mat Min Zio Peak Influence 407 | . 115 407 80 . Initial 80 | . . 48 80 . Average 143 | . 80 244 80 . Maximum Alert Level 2 | . . 2 . . Low Security (%) 73 | 100 100 35 100 . Level 1 25 | . . 62 . . Level 2 . | . . 1 . . Level 3 . | . . . . . Level 4 . | . . . . . Level 5 . | . . . . . High Security . | . . . . . Max Security . | . . . . . Squads Dispatched . | . . . . . Investigation . | . . . . . Extermination . | . . . . . Reinforcement . | . . . . . Assault . | . . . . . Garrison . | . . . . . Intercept . | . . . . . Searches Triggered . | . . . . . Construction Impeded . | . . . . . Haulers Reinforced . | . . . . . Active Scanning Responses . | . . . . . Cargo Convoy Interrupts . | . . . . . Stealth | -11 -10 -9 -9 -7 --------- Run | Yrd Mat Mat Min Zio Distress Signals 2 | . . 2 . . Communications Jammed . | . . . . . Distress Signals . | . . . . . Times Spotted 25 | . 5 15 . 5 Peak Tracking Total 5 | . 3 5 . 3 Tactical Retreats 1 | . . 1 . . Traps | -11 -10 -9 -9 -7 ------- Run | Yrd Mat Mat Min Zio Traps Triggered 1 | . 1 . . . Indirectly . | . . . . . Trap Hack Attempts . | . . . . . Triggered . | . . . . . Disarmed . | . . . . . Reprogrammed . | . . . . . Reused . | . . . . . Traps Extracted . | . . . . . Installed . | . . . . . Triggered . | . . . . . Machines | -11 -10 -9 -9 -7 ---------- Run | Yrd Mat Mat Min Zio Machines Disabled 1 | . . 1 . . Max in Single Turn 1 | . . 1 . . Machines Repaired . | . . . . . Machines Dismantled . | . . . . . Machines Sabotaged . | . . . . . Overloaded Fab Kills . | . . . . . Hacking | -11 -10 -9 -9 -7 --------- Run | Yrd Mat Mat Min Zio Machines Accessed 4 | . 3 1 . . Terminals 2 | . 2 . . . Fabricators . | . . . . . Repair Stations . | . . . . . Recycling Units 1 | . 1 . . . Scanalyzers 1 | . . 1 . . Garrison Access . | . . . . . Total Hacks 9 | . 8 1 . . Successful 4 | . 4 . . . Failed 5 | . 4 1 . . Catastrophic 1 | . . 1 . . Database Lockouts . | . . . . . Manual 5 | . 5 . . . Terminals 5 | . 5 . . . Fabricators . | . . . . . Repair Stations . | . . . . . Recycling Units 3 | . 3 . . . Scanalyzers 1 | . . 1 . . Garrison Access . | . . . . . Terminal Hacks 1 | . 1 . . . Emergency Access Points 1 | . 1 . . . Fabricator Hacks . | . . . . . Repair Station Hacks . | . . . . . Recycling Unit Hacks 3 | . 3 . . . Recycle Component 1 | . 1 . . . Process 1 | . 1 . . . Report Inventory 1 | . 1 . . . Scanalyzer . | . . . . . Garrison Access Hacks . | . . . . . Unauthorized Hacks . | . . . . . Terminals . | . . . . . Fabricators . | . . . . . Repair Stations . | . . . . . Recycling Units . | . . . . . Scanalyzers . | . . . . . Garrison Access . | . . . . . Data Cores Recovered . | . . . . . Used . | . . . . . Hacking Detections 2 | . 2 . . . Full Trace Events . | . . . . . Feedback Events . | . . . . . Feedback Blocked . | . . . . . Robot Schematics Acquired . | . . . . . Robots Built . | . . . . . Authchips . | . . . . . Time . | . . . . . Total Robot Build Rating . | . . . . . Part Schematics Acquired . | . . . . . Parts Built . | . . . . . Authchips . | . . . . . Time . | . . . . . Total Part Build Rating . | . . . . . Parts Repaired . | . . . . . Time . | . . . . . Parts Recycled 1 | . 1 . . . Recycled Matter 30 | . 30 . . . Retrieved Matter . | . . . . . Retrieved Components . | . . . . . Parts Scanalyzed . | . . . . . Part Schematics Acquired . | . . . . . Parts Damaged . | . . . . . Bothacking | -11 -10 -9 -9 -7 ------------ Run | Yrd Mat Mat Min Zio Used RIF Installer . | . . . . . Robots Hacked . | . . . . . Non-combat . | . . . . . Combat . | . . . . . Robot Hacks Applied . | . . . . . Relay Couplers Released . | . . . . . Fabnet Peak Effective % . | . . . . . Robots Rewired . | . . . . . Allies Hacked . | . . . . . Hacks Repelled . | . . . . . Allies | -11 -10 -9 -9 -7 -------- Run | Yrd Mat Mat Min Zio Total Allies . | . . . . . Largest Group . | . . . . . Highest-Rated Group . | . . . . . Highest-Rated Ally . | . . . . . Total Orders . | . . . . . Ally Attacks . | . . . . . Total Damage . | . . . . . Kills . | . . . . . Allies Corrupted . | . . . . . Allies Melted . | . . . . . Intel | -11 -10 -9 -9 -7 ------- Run | Yrd Mat Mat Min Zio Robot Analysis Total . | . . . . . Derelict Logs Recovered 1 | . . . 1 . Drone Launches . | . . . . . Drone Recoveries . | . . . . . Exploration | -11 -10 -9 -9 -7 ------------- Run | Yrd Mat Mat Min Zio Turns Passed 1321 | 54 319 402 201 345 Spaces Moved 885 | 34 222 229 165 235 Core 6 | 3 . . . 3 Treads . | . . . . . Legs 879 | 31 222 229 165 232 Wheels . | . . . . . Hover . | . . . . . Flight . | . . . . . Fastest Speed 50 | 50 120 120 120 120 Average Speed 121 | 128 120 120 120 122 Slowest Speed 200 | 190 120 120 120 200 Overloaded Moves . | . . . . . Propulsion Burnouts . | . . . . . Robots Hopped . | . . . . . Cave-ins Triggered . | . . . . . Exploration Rate (%) 35 | 3 30 22 69 52 Regions Visited 4 Branch Regions 2 Pre-discovered Areas . | . . . . . Known Exits Taken . | . . . . . Unknown Exits Taken 4 | 1 1 1 1 . Scrap Searched 5 | . . . 3 2 Spaces Dug . | . . . . . Terrain Destroyed . | . . . . . Melee . | . . . . . Projectile . | . . . . . AOE . | . . . . . Terrain Rammed . | . . . . . Walls Destroyed . | . . . . . Machines Disabled . | . . . . . Actions | -11 -10 -9 -9 -7 --------- Run | Yrd Mat Mat Min Zio Total 1008 | 41 250 289 168 260 Wait 8 | . 3 2 . 3 Move 881 | 33 221 228 164 235 Hop . | . . . . . Pick Up 19 | 2 7 7 1 2 Fast Attach 12 | 6 3 2 . 1 Attach 8 | . 1 6 1 . Detach 2 | . 1 1 . . Swap 3 | . . 1 1 1 Drop 10 | . 1 6 1 2 Fire 52 | . 13 36 . 3 Melee 13 | . . . . 13 Ram . | . . . . . Kick . | . . . . . Crush . | . . . . . Escape Stasis . | . . . . . Rewire . | . . . . . Trap . | . . . . . Miscellaneous . | . . . . . Route ------- -11/Scrapyard -10/Materials -9/Materials (discovered 2 exits: [*Min x2]) -9/Mines (discovered 2 exits: [*Mat] / [*Zio]) -7/Zion History --------- Turn | Location | Event 17 | -11/Scrapyard | Discovered new exit (range 15) 55 | -11/Scrapyard | Entered Materials 254 | -10/Materials | Discovered new exit (range 16) 304 | -10/Materials | Build established: Mutant 374 | -10/Materials | Entered another Materials area 374 | -9/Materials | Evolved 2 slots: Propulsion x1, Utility x1 457 | -9/Materials | Discovered new exit (range 13) 700 | -9/Materials | Discovered new exit (range 16) 776 | -9/Materials | Entered Mines 802 | -9/Mines | A weapon hastily lodged in a ceiling crevice suddenly fell to the ground 833 | -9/Mines | Learned Materials stockpile data 844 | -9/Mines | Found a hidden stash of uninstalled traps 933 | -9/Mines | Discovered new exit (range 9) 964 | -9/Mines | A Derelict revealed a hidden shortcut to a safe place 977 | -9/Mines | Entered Zion 1000 | -7/Zion | Found Relay Coupler [Programmer] 1091 | -7/Zion | Found CR-A16's Pointy Stick 1263 | -7/Zion | Attacked by Zionites 1304 | -7/Zion | Core integrity fell below 50% 1316 | -7/Zion | Core integrity fell below 20% 1318 | -7/Zion | Lost 4 parts (1p2n1w) 1322 | -7/Zion | Destroyed by 9X-CTS(z) with Makeshift Laser Last Messages --------------- JK-23D(z) overheating. 1Z-EYM(z) emerges from the Twisted Machinery. JK-23D(z) overheating. JK-23D(z) heat spikes uncontrollably. JK-23D(z) overheating. JK-23D(z) pulls a Mak. Laser out of the Twisted Machinery. JK-23D(z) overheating. JK-23D(z) heat spikes uncontrollably. JK-23D(z) overheating. JK-23D(z) heat damages Mak. Laser. JK-23D(z) overheating. JK-23D(z) suffers critical hit (Impale). Destroyed Mak. Leg. JK-23D(z) destroyed. 48-NN7(z) bursts out of the Twisted Machinery. 48-NN7(z) pulls a Mak. Spear out of the Twisted Machinery. System corrupted: Energy discharge (-30). A strange signal echoes through Zion. 48-NN7(z) destroyed. Critical hit (Burn: +37). Map ----- +----------------------------------------------------+ | ?"" "" " ""???????????????????? | | ?"" """ " "#???????????????????? | | ? " """" "" """???????????????????? | | ?? "" """" "" """"""""#???????????????????? | | ?????"" """" "" """##""#????????????????????? | | ????""" """" "" #""#??"?????????????????????? | | ???"" """" "" """#????????????????????????? | | ??#"" """" "#?????????????????????????? | | ???#"" "#?????????????????????????? | | ???#"" """" """ ""#?????????????????????????? | | ???#"" """"" """ ""#?????????????????????????? | | ?????" """" """ ""#####?????????????????????? | | ?????" "" ""#"""##????????????????????? | | ?????" """ """ """"""#""""????????????????? | | ?????" """ """""""" """????????????? | | ????? "" ???????????? | | ????? """ "" ???????????? | | ????" """" ???????????? | | ???# "" """ """ ???????????? | | ????" """"""" ????????????? | | ????" "###"""" ?????????????? | | ????" " ""#??#"""?????????????????? | | ?????""" ""####""??????????????????? | | ??????#" """ c """#""##??????????????????? | | ??????"""""""" z!"""####""""???????????? | | ???????#""""""""" * @%/ """"???????????? | | ??????###"" """"" % ## ## ??????? | | ??????#""" """" / # # ?????????????? | | ???????#"" """ = """ ?????????????? | | ????????#"" """ ????????????? | | ???????#""""" "z """ ????????????? | | ????????###""" "" " # # "????????????? | | ??????????##""" "" ## ##????????????????? | | ???????????#""""" """ ???????????????? | | ???????????####""""""" "" """#?????????????? | | ??????????????#####"""" """" """##?????????????? | | ??????????????????###"""""#""""""##??????????????? | | ????????????????????##"##"#""""##????????????????? | | ?????????????????????######??????????????????????? | | ?????????????????????????????????????????????????? | | ?????????????????????????????????????????????????? | | ?????????????????????????????????????????????????? | | ?????????????????????????????????????????????????? | | ?????????????????????????????????????????????????? | | ?????????????????????????????????????????????????? | | ?????????????????????????????????????????????????? | | ?????????????????????????????????????????????????? | | ?????????????????????????????????????????????????? | | ?????????????????????????????????????????????????? | | ?????????????????????????????????????????????????? | +----------------------------------------------------+ Best States ------------- Heat Dissipation 28 Energy Generation 10 Energy Capacity 250 Matter Stores 300 Matter Capacity 300 Sight Range 18 Terrain Scan Range 14 Terrain Scan Density 10 Evasion (%) 55 Targeting Accuracy 6 Item Schematics ----------------- None Robot Schematics ------------------ None Fabricated ------------ Nothing Alien Tech Used ----------------- None Achievements -------------- Robot Respite Challenges ------------ None Game ------ Seed ThermicRiotFirepult Manual? 0 Play Time 00:18:59 Cumulative 2.8 hours Start 2024.04.04 @ 22:05:58 End 2024.04.04 @ 22:24:28 Sessions 1 Manual Loads 0 Difficulty Rogue Special Mode None Game No. 6 Rogue 6 Adventurer 0 Explorer 0 Win Type - Total 0 Types 0/0/0/0/0/0/0/0/0 Lore% 2 Gallery% 8 Achievement% 8 Wizard Run 0 Options --------- Layout 1 ASCII 0 Keyboard 0 Movement Numpad Keybinds 0 Fullscreen 1 Font 32/SmallcapsGlow Map View 77x35 Zoom Use 0% Tactical HUD 0 Map Filters NONE Filters NONE Steam 1 RUN: 12e04a73-91ce-49c6-afdc-8872c63435e3